[Event "6th Cesme Open-A 2018"]
[Site "Cesme"]
[Date "2018.07.01"]
[Round "9.15"]
[White "Guseynov, Alihan"]
[Black "Yasin, Hur"]
[Result "1-0"]
[ECO "A39"]
[WhiteElo "2341"]
[BlackElo "1991"]
[Annotator "NA"]
[PlyCount "69"]
[EventDate "2018.06.26"]
[EventType "swiss"]
[EventCountry "TUR"]
[SourceTitle "playchess.com"]
[Source "ChessBase"]
[SourceQuality "1"]
[TimeControl "5400+30"]

1. d4 {[%emt 0:00:30]} Nf6 {[%emt 0:01:30]} 2. c4 {[%emt 0:00:30]} c5 {[%emt 0:00:30]} 3. Nf3 {[%emt 0:00:00]} cxd4 {[%emt 0:03:30]} 4. Nxd4 {[%emt 0:00:00]} g6 {[%emt 0:01:30]} 5. Nc3 {[%emt 0:00:30]} Nc6 {[%emt 0:00:00]} 6. g3 {[%emt 0:00:30]} Bg7 {[%emt 0:01:00]} 7. Bg2 {[%emt 0:00:30]} Nxd4 {[%emt 0:02:30]} 8. Qxd4 {[%emt 0:00:30]} O-O {[%emt 0:00:00]} 9. O-O {[%emt 0:00:30]} d6 {[%emt 0:00:00]} 10. Qd3 {[%emt 0:03:30]} Nd7 {[%emt 0:00:30]} 11. b3 {[%emt 0:01:30]} Nc5 {[%emt 0:01:30]} 12. Qd2 {[%emt 0:01:30]} a5 {[%emt 0:01:30] LiveBook: 18 Games A39: Symmetrical English vs ...g6: 4 Bg2 Bg7 5 Nf3 Nf6 6 0-0 0-0 7 d4} (12... Rb8 13. Bb2 b6 14. b4 Nd7 15. Nd5 Bxb2 16. Qxb2 Bb7 17. Rfd1 e6 18. Ne3 Bxg2 19. Kxg2 Qc7 20. Qd4 {1-0 (48) Melkumyan,H (2632)-Arkell,K (2499) London 2015}) 13. Rb1 {[%emt 0:04:30]} Re8 $146 {[%emt 0:08:30]} ({Predecessor:} 13... Bf5 14. e4 Be6 15. Nd5 Rb8 16. Qe2 Qd7 17. Bd2 b6 18. h4 Rfe8 19. Rfe1 Bd4 20. Bg5 {1-0 (89) Sarana,A (2427)-Obgolts,E (2217) St Petersburg 2016}) 14. Bb2 {[%emt 0:04:30]} Bf5 {[%emt 0:19:30]} 15. Rbc1 {[%emt 0:13:30]} Qd7 {[%emt 0:06:30]} 16. Rfd1 {[%emt 0:02:30]} Ra6 {[%emt 0:03:30]} 17. Nd5 {[%emt 0:08:30]} f6 {[%emt 0:07:30]} 18. Qe3 {[%emt 0:11:30]} Kf7 {[%emt 0:03:30]} 19. a3 {[%emt 0:14:30]} Rc8 {[%emt 0:10:30]} (19... Qe6 $16 {was worth a try.}) 20. b4 {[%emt 0:04:30]} axb4 {[%emt 0:00:30]} 21. axb4 {[%emt 0:00:00]} Na4 {[%emt 0:00:00]} 22. Ba1 {[%emt 0:00:00]} Rac6 {[%emt 0:01:00]} 23. c5 {[%emt 0:22:49]} e6 {[%emt 0:07:23]} 24. Nf4 {[%emt 0:01:14]} d5 {[%emt 0:00:42]} 25. Qb3 {[%emt 0:00:10]} Ra6 $2 {[%emt 0:08:23]} (25... Nxc5 26. Rxc5 Qe8) 26. e4 {[%emt 0:00:41]} Bg4 {[%emt 0:00:09]} 27. exd5 {[%emt 0:02:53]} e5 {[%emt 0:02:16]} 28. d6+ {[%emt 0:00:25]} Kf8 {[%emt 0:00:28]} 29. f3 {[%emt 0:01:09]} Bf5 {[%emt 0:01:26]} 30. g4 {[%emt 0:00:15]} exf4 {[%emt 0:01:34]} 31. gxf5 {[%emt 0:00:01]} Qxf5 {[%emt 0:02:28]} 32. Re1 {[%emt 0:00:44]} Nxc5 {[%emt 0:02:54]} 33. bxc5 {[%emt 0:00:03]} Rxc5 {[%emt 0:00:42]} 34. Qxb7 {[%emt 0:01:16]} Rac6 {[%emt 0:02:30]} 35. Re8+ {[%emt 0:00:49]} 1-0

[Event "6th Cesme Open-A 2018"]
[Site "Cesme"]
[Date "2018.07.01"]
[Round "9.16"]
[White "Kucuk, Dogan"]
[Black "Samani, Yamac"]
[Result "1/2-1/2"]
[ECO "D79"]
[WhiteElo "1974"]
[BlackElo "2227"]
[Annotator "NA"]
[PlyCount "25"]
[EventDate "2018.06.26"]
[EventType "swiss"]
[EventCountry "TUR"]
[SourceTitle "playchess.com"]
[Source "ChessBase"]
[SourceQuality "1"]
[TimeControl "5400+30"]

1. Nf3 {[%emt 0:00:30]} Nf6 {[%emt 0:00:30]} 2. g3 {[%emt 0:00:30]} g6 {[%emt 0:03:30]} 3. Bg2 {[%emt 0:00:00]} Bg7 {[%emt 0:00:30]} 4. O-O {[%emt 0:00:00]} O-O {[%emt 0:00:00]} 5. d4 {[%emt 0:00:30]} d5 {[%emt 0:03:00]} 6. c4 {[%emt 0:00:30]} c6 {[%emt 0:00:30]} 7. cxd5 {[%emt 0:00:30]} cxd5 {[%emt 0:00:30]} 8. Nc3 {[%emt 0:00:00]} e6 {[%emt 0:01:30]} 9. Bf4 {[%emt 0:04:00]} Nc6 {[%emt 0:01:30]} 10. Ne5 {[%emt 0:01:30]} Bd7 {[%emt 0:04:30]} 11. Nxc6 {[%emt 0:01:30]} Bxc6 {[%emt 0:00:30]} 12. Be5 $11 {[%emt 0:07:30] LiveBook: 8 Games} Nd7 {[%emt 0:17:30]} 13. Nb1 {[%emt 0:00:30]} 1/2-1/2

[Event "6th Cesme Open-A 2018"]
[Site "Cesme"]
[Date "2018.07.01"]
[Round "9.17"]
[White "Ozkan, Ervin"]
[Black "Karaahmetoglu, Ege"]
[Result "1-0"]
[ECO "E15"]
[WhiteElo "2171"]
[BlackElo "2040"]
[Annotator "NA"]
[PlyCount "75"]
[EventDate "2018.06.26"]
[EventType "swiss"]
[EventCountry "TUR"]
[SourceTitle "playchess.com"]
[Source "ChessBase"]
[SourceQuality "1"]
[TimeControl "5400+30"]

1. d4 {[%emt 0:00:30]} Nf6 {[%emt 0:00:30]} 2. c4 {[%emt 0:01:30]} e6 {[%emt 0:00:00]} 3. Nf3 {[%emt 0:00:30]} b6 {[%emt 0:00:00]} 4. g3 {[%emt 0:02:30]} Ba6 {[%emt 0:00:30]} 5. Qa4 {[%emt 0:00:30]} Bb7 {[%emt 0:02:30]} 6. Bg2 {[%emt 0:00:30]} Be7 {[%emt 0:00:00] E15: Queen's Indian: 4 g3 sidelines, 4 g3 Ba6 and 4 g3 Bb7 early deviations} (6... c5 7. dxc5 bxc5 8. O-O Be7 9. Nc3 O-O 10. Rd1 Qb6 11. Bf4 d6 12. Rab1 Nbd7 13. b4 Rfb8 14. a3 h6 15. h3 a6 16. Qa5 Qxa5 17. bxa5 Ne8 18. Ne5 Nxe5 19. Bxb7 Nxc4 20. Bxa8 Rxa8 {0-1 (49) Xu,Y (2545)-Jakovenko,D (2732) China 2018}) 7. O-O {[%emt 0:00:30]} O-O {[%emt 0:01:00]} 8. Rd1 {[%emt 0:05:30]} Qc8 {[%emt 0:16:30]} 9. Bf4 {[%emt 0:04:30]} c5 {[%emt 0:04:30]} 10. Nc3 {[%emt 0:02:30]} Bc6 $146 {[%emt 0:28:30]} ({Predecessor:} 10... cxd4 $11 11. Nxd4 Bxg2 12. Kxg2 Nc6 (12... Qb7+ 13. Nf3 Rc8 14. Kg1 a6 15. Bd6 Bxd6 16. Rxd6 Nc6 17. Rad1 b5 18. cxb5 axb5 19. Qh4 Ne7 20. Qb4 Ned5 21. Qxb5 Qxb5 22. Nxb5 Rxa2 {0-1 (44) Ton That Nhu,T (2279)-Dao,T (2523) Ho Chi Minh City 2010})) 11. Qb3 {[%emt 0:11:30]} (11. Qc2 $14) 11... cxd4 {[%emt 0:00:30]} 12. Rxd4 {[%emt 0:13:30]} Bc5 {[%emt 0:11:30]} 13. Rd2 {[%emt 0:00:00]} Qb7 {[%emt 0:05:30]} 14. Bd6 {[%emt 0:05:00]} Bxd6 {[%emt 0:01:30]} 15. Rxd6 {[%emt 0:00:30]} Na6 {[%emt 0:00:00]} 16. Qc2 {[%emt 0:01:30]} Rac8 {[%emt 0:03:00]} 17. Rad1 {[%emt 0:08:30]} (17. e4 $5) 17... Qa8 {[%emt 0:03:31]} 18. b3 {[%emt 0:04:30]} Nc5 {[%emt 0:03:32]} 19. Ne1 {[%emt 0:02:30]} a6 {[%emt 0:08:10]} 20. Bxc6 {[%emt 0:01:30]} dxc6 $14 {[%emt 0:01:43]} 21. Nf3 {[%emt 0:03:30]} Nb7 {[%emt 0:03:16]} 22. R6d2 {[%emt 0:00:30]} c5 {[%emt 0:00:59]} 23. Ne4 {[%emt 0:00:30]} Nxe4 {[%emt 0:02:30]} 24. Qxe4 {[%emt 0:00:00]} Na5 {[%emt 0:00:00]} 25. Qh4 {[%emt 0:02:00]} Nc6 {[%emt 0:00:19]} 26. Rd7 {[%emt 0:00:30]} Rcd8 {[%emt 0:01:00]} 27. Qe4 {[%emt 0:06:30]} Rxd7 {[%emt 0:01:55]} 28. Rxd7 {[%emt 0:00:30]} Nb4 {[%emt 0:00:26]} 29. Qb1 {[%emt 0:02:30]} Qc8 {[%emt 0:00:37]} 30. Ng5 {[%emt 0:00:30]} g6 {[%emt 0:00:43]} 31. Qd1 {[%emt 0:00:30]} h6 {[%emt 0:00:15]} 32. Nxf7 {[%emt 0:00:00]} Nd5 {[%emt 0:00:33]} 33. Nxh6+ {[%emt 0:01:00]} Kh8 {[%emt 0:00:01]} 34. Qa1+ {[%emt 0:00:30]} Nf6 {[%emt 0:00:21]} 35. Rf7 {[%emt 0:01:37]} Rxf7 {[%emt 0:00:30]} 36. Nxf7+ {[%emt 0:00:30]} Kg7 {[%emt 0:00:00]} 37. Ng5 {[%emt 0:00:00]} Qc6 {[%emt 0:00:53]} 38. Qe5 {[%emt 0:00:29]} 1-0

[Event "6th Cesme Open-A 2018"]
[Site "Cesme"]
[Date "2018.07.01"]
[Round "9.18"]
[White "Gulbeyaz, Emir"]
[Black "Isik, Alparslan"]
[Result "1/2-1/2"]
[ECO "B07"]
[WhiteElo "2074"]
[BlackElo "2212"]
[Annotator "NA"]
[PlyCount "42"]
[EventDate "2018.06.26"]
[EventType "swiss"]
[EventCountry "TUR"]
[SourceTitle "playchess.com"]
[Source "ChessBase"]
[SourceQuality "1"]
[TimeControl "5400+30"]

{[%evp 21,42,-26,0,-18,-28,-25,32767,0,-8,-23,18,7,20,-8,33,32767,32767,0,0,32767,2,32767,210]} 1. e4 {[%emt 0:20:30]} d6 {[%emt 0:00:30]} 2. d4 {[%emt 0:00:30]} Nf6 {[%emt 0:00:30]} 3. Nc3 {[%emt 0:00:30]} e5 {[%emt 0:00:30]} 4. Nge2 {[%emt 0:00:00]} Be7 {[%emt 0:00:00]} 5. g3 {[%emt 0:00:00]} O-O {[%emt 0:01:00] B07: Pirc Defence: Miscellaneous Systems} 6. Bg2 {[%emt 0:00:30]} c6 {[%emt 0:00:30]} 7. a4 {[%emt 0:00:30]} (7. O-O b5 8. a3 Nbd7 9. h3 a5 10. g4 Ba6 11. Ng3 exd4 12. Qxd4 b4 13. Nce2 d5 14. e5 Bxe2 15. Nxe2 Bc5 16. Qf4 Nxe5 17. Qxe5 {0-1 (43) Moiseenko,A (2707)-Caruana,F (2791) Dubai 2014}) 7... a5 {[%emt 0:00:00]} 8. O-O {[%emt 0:00:00]} Na6 {[%emt 0:00:00]} 9. h3 {[%emt 0:00:00]} Nb4 {[%emt 0:01:30]} 10. Be3 {[%emt 0:00:00]} exd4 {[%emt 0:01:30]} 11. Nxd4 {[%emt 0:00:00]} d5 {[%emt 0:01:30]} 12. e5 {[%emt 0:07:30]} Nd7 {[%emt 0:01:30]} 13. Nf3 {[%emt 0:08:30]} Nc5 $146 {[%emt 0:03:30]} 14. Ne2 {[%emt 0:00:30]} Qc7 {[%emt 0:14:30]} 15. Ned4 {[%emt 0:05:30]} Ne4 {[%emt 0:10:30]} 16. c3 {[%emt 0:02:30]} Na6 {[%emt 0:01:30]} 17. Qc1 {[%emt 0:05:30]} Be6 {[%emt 0:09:30]} 18. Bf4 {[%emt 0:07:30]} Nac5 {[%emt 0:01:30]} 19. Qe3 {[%emt 0:02:30]} Qb6 {[%emt 0:07:30]} 20. Rfb1 {[%emt 0:00:30]} Qd8 {[%emt 0:02:30]} 21. g4 {[%emt 0:04:30]} f6 $18 {[%emt 0:05:30]} (21... Bd7 $11 {and Black is okay.}) 1/2-1/2